fUST/lending_fUST_20241112
["ID","MTS","AMOUNT","RATE_DAILY","PERIOD"]
[341996662,1731352244551,-500.0,0.00021917,2]
[341996663,1731352244561,-500.0,0.00021917,2]
[341996664,1731352244570,-500.0,0.00021917,2]
[341996665,1731352244582,-500.0,0.00021917,2]
[341996666,1731352244591,-500.0,0.00021917,2]
[341996667,1731352244600,-500.0,0.00021917,2]
[341996668,1731352244610,-500.0,0.00021917,2]
[341996669,1731352244619,-500.0,0.00021917,2]
[341996670,1731352244629,-204.86,0.00021917,2]
[341996671,1731352244638,-513.77562461,0.00021917,2]
[341996672,1731352244648,-500.0,0.00021917,2]
[341996673,1731352244657,-500.0,0.00021917,2]
[341996674,1731352244666,-502.08930359,0.00021917,2]
[341996675,1731352244676,-151.0,0.00021917,2]
[341996676,1731352244685,-500.0,0.00021917,2]
[341996677,1731352244694,-500.0,0.00021917,2]
[341996678,1731352244703,-500.0,0.00021917,2]
[341996679,1731352244713,-500.0,0.00021917,2]
[341996680,1731352244722,-151.0,0.00021917,2]
[341996681,1731352244731,-151.0,0.00021917,2]
[341996682,1731352244740,-365.35954323,0.00021917,2]
[341996683,1731352244749,-919.93,0.00021917,2]
[341996684,1731352244758,-506.81952075,0.00021917,2]
[341996685,1731352244768,-500.0,0.00021917,2]
[341996686,1731352244778,-483.89,0.00021917,2]
[341996687,1731352244789,-500.0,0.00021917,2]
[341996688,1731352244801,-500.0,0.00021917,2]
[341996689,1731352244810,-500.0,0.00021917,2]
[341996690,1731352244820,-500.0,0.00021917,2]
[341996691,1731352244831,-500.0,0.00021917,2]
[341996692,1731352244841,-382.803896,0.00021917,2]
[341996693,1731352244850,-151.0,0.00021917,2]
[341996694,1731352244860,-151.0,0.00021917,2]
[341996695,1731352244871,-336.48,0.00021917,2]
[341996696,1731352244883,-500.50454196,0.00021917,2]
[341996697,1731352244893,-151.79775,0.00021917,2]
[341996698,1731352244903,-511.68198346,0.00021917,2]
[341996699,1731352244913,-151.0,0.00021917,2]
[341996700,1731352244923,-500.0,0.00021917,2]
[341996701,1731352244933,-500.0,0.00021917,2]
[341996702,1731352244942,-304.76402893,0.00021917,2]
[341996703,1731352244952,-500.0,0.00021917,2]
[341996704,1731352244962,-151.0,0.00021917,2]
[341996705,1731352244972,-502.48861596,0.00021917,2]
[341996706,1731352244982,-500.0,0.00021917,2]
[341996707,1731352244991,-500.0,0.00021917,2]
[341996708,1731352245001,-508.11830756,0.00021917,2]
[341996709,1731352245011,-500.0,0.00021917,2]
[341996710,1731352245020,-500.0,0.00021917,2]
[341996711,1731352245029,-500.0,0.00021917,2]
[341996712,1731352245039,-500.0,0.00021917,2]
[341996713,1731352245049,-500.0,0.00021917,2]
[341996714,1731352245058,-370.14842038,0.00021917,2]
[341996715,1731352245068,-500.0,0.00021917,2]
[341996716,1731352245079,-500.0,0.00021917,2]
[341996717,1731352245089,-615.61428252,0.00021917,2]
[341996718,1731352245098,-500.0,0.00021917,2]
[341996719,1731352245107,-500.0,0.00021917,2]
[341996720,1731352245117,-232.96466132,0.00021917,2]
[341996721,1731352245126,-500.0,0.00021917,2]
[341996722,1731352245136,-500.0,0.00021917,2]
[341996723,1731352245146,-500.817625,0.00021917,2]
[341996724,1731352245155,-500.0,0.00021917,2]
[341996725,1731352245165,-500.0,0.00021917,2]
[341996726,1731352245174,-1112.93,0.00021917,2]
[341996727,1731352245184,-502.61058034,0.00021917,2]
[341996728,1731352245193,-500.0,0.00021917,2]
[341996729,1731352245202,-592.3541339,0.00021917,2]
[341996730,1731352245212,-500.0,0.00021917,2]
[341996731,1731352245221,-500.0,0.00021917,2]
[341996732,1731352245231,-500.0,0.00021917,2]
[341996733,1731352245240,-500.0,0.00021917,2]
[341996734,1731352245249,-505.6,0.00021917,2]
[341996735,1731352245259,-500.0,0.00021917,2]
[341996736,1731352245267,-503.67411777,0.00021917,2]
[341996737,1731352245277,-500.0,0.00021917,2]
[341996738,1731352245286,-500.0,0.00021917,2]
[341996739,1731352245295,-500.0,0.00021917,2]
[341996740,1731352245305,-180.5900324,0.00021917,2]
[341996741,1731352245314,-529.94628143,0.00021917,2]
[341996742,1731352245324,-500.0,0.00021917,2]
[341996743,1731352245338,-1420.48,0.00021917,2]
[341996744,1731352245347,-500.0,0.00021917,2]
[341996745,1731352245357,-500.0,0.00021917,2]
[341996746,1731352245366,-500.0,0.00021917,2]
[341996747,1731352245376,-500.0,0.00021917,2]
[341996748,1731352245387,-500.0,0.00021917,2]
[341996749,1731352245397,-500.0,0.00021917,2]
[341996751,1731352245407,-500.0,0.00021917,2]
[341996753,1731352245417,-502.44953685,0.00021917,2]
[341996754,1731352245427,-620.51392782,0.00021917,2]
[341996755,1731352245437,-500.0,0.00021917,2]
[341996757,1731352245446,-627.68711973,0.00021917,2]
[341996758,1731352245456,-3415.93,0.00021917,2]
[341996759,1731352245466,-500.0,0.00021917,2]
[341996760,1731352245476,-953.53,0.00021917,2]
[341996761,1731352245486,-169.82668604,0.00021917,2]
[341996762,1731352245496,-500.0,0.00021917,2]
[341996764,1731352245506,-501.67488762,0.00021917,2]
[341996766,1731352245516,-500.0,0.00021917,2]
[341996768,1731352245526,-500.0,0.00021917,2]
[341996770,1731352245536,-500.0,0.00021917,2]
[341996772,1731352245546,-500.0,0.00021917,2]
[341996774,1731352245557,-500.0,0.00021917,2]
[341996776,1731352245567,-500.0,0.00021917,2]
[341996777,1731352245580,-507.74031188,0.00021917,2]
[341996778,1731352245589,-500.0,0.00021917,2]
[341996779,1731352245599,-349.66560353,0.00021917,2]
[341996782,1731352245608,-500.0,0.00021917,2]
[341996785,1731352245617,-391.4469924,0.00021917,2]
[341996788,1731352245627,-500.61782416,0.00021917,2]
[341996790,1731352245637,-505.31,0.00021917,2]
[341996792,1731352245647,-535.79,0.00021917,2]
[341996794,1731352245656,-151.0,0.00021917,2]
[341996796,1731352245667,-500.0,0.00021917,2]
[341996798,1731352245678,-503.84188911,0.00021917,2]
[341996800,1731352245688,-500.0,0.00021917,2]
[341996803,1731352245698,-500.0,0.00021917,2]
[341996806,1731352245709,-978.42,0.00021917,2]
[341996809,1731352245721,-500.0,0.00021917,2]
[341996811,1731352245730,-500.0,0.00021917,2]
[341996813,1731352245740,-526.87227088,0.00021917,2]
[341996815,1731352245750,-1500.43,0.00021917,2]
[341996817,1731352245760,-500.0,0.00021917,2]
[341996819,1731352245771,-500.0,0.00021917,2]
[341996820,1731352245781,-500.0,0.00021917,2]
[341996821,1731352245793,-151.0,0.00021917,2]
[341996823,1731352245803,-500.0,0.00021917,2]
[341996824,1731352245814,-322.73707119,0.00021917,2]
[341996825,1731352245827,-502.30462674,0.00021917,2]
[341996826,1731352245841,-500.0,0.00021917,2]
[341996827,1731352245859,-500.0,0.00021917,2]
[341996828,1731352245875,-500.0,0.00021917,2]
[341996829,1731352245888,-500.0,0.00021917,2]
[341996831,1731352245903,-500.0,0.00021917,2]
[341996833,1731352245919,-151.0,0.00021917,2]
[341996835,1731352245933,-1516.06,0.00021917,2]
[341996837,1731352245945,-573.65072768,0.00021917,2]
[341996838,1731352245957,-500.0,0.00021917,2]
[341996839,1731352245969,-500.0,0.00021917,2]
[341996841,1731352245982,-500.0,0.00021917,2]
[341996843,1731352245995,-500.0,0.00021917,2]
[341996844,1731352246007,-500.0,0.00021917,2]
[341996845,1731352246021,-500.0,0.00021917,2]
[341996846,1731352246034,-500.0,0.00021917,2]
[341996847,1731352246048,-1259.37,0.00021917,2]
[341996848,1731352246062,-500.0,0.00021917,2]
[341996849,1731352246076,-243.66179463,0.00021917,2]
[341996851,1731352246089,-3617.58,0.00021917,2]
[341996853,1731352246102,-523.09475963,0.00021917,2]
[341996854,1731352246115,-596.13640721,0.00021917,2]
[341996855,1731352246127,-486.25353279,0.00021917,2]
[341996857,1731352246588,-1169.27083333,0.00020845,2]
[341996858,1731352246600,-13.74646721,0.00021917,2]
[341996859,1731352246612,-500.0,0.00021917,2]
[341996860,1731352246624,-500.0,0.00021917,2]
[341996861,1731352246636,-513.51728956,0.00021917,2]
[341996862,1731352246647,-500.0,0.00021917,2]
[341996863,1731352246658,-541.14863781,0.00021917,2]
[341996864,1731352246670,-151.0,0.00021917,2]
[341996865,1731352246681,-508.67385421,0.00021917,2]
[341996866,1731352246692,-500.0,0.00021917,2]
[341996867,1731352246704,-500.0,0.00021917,2]
[341996868,1731352246716,-500.0,0.00021917,2]
[341996869,1731352246728,-500.0,0.00021917,2]
[341996870,1731352246739,-3846.01,0.00021917,2]
[341996872,1731352246751,-500.0,0.00021917,2]
[341996873,1731352246763,-500.0,0.00021917,2]
[341996875,1731352246774,-500.0,0.00021917,2]
[341996876,1731352246786,-500.0,0.00021917,2]
[341996877,1731352246801,-500.0,0.00021917,2]
[341996878,1731352246812,-500.0,0.00021917,2]
[341996879,1731352246826,-500.0,0.00021917,2]
[341996880,1731352246838,-500.0,0.00021917,2]
[341996881,1731352246849,-231.6521697,0.00021917,2]
[341996882,1731352246860,-500.0,0.00021917,2]
[341996883,1731352246873,-514.6765341,0.00021917,2]
[341996884,1731352246885,-696.01,0.00021917,2]
[341996885,1731352246897,-500.0,0.00021917,2]
[341996886,1731352246908,-500.0,0.00021917,2]
[341996887,1731352246920,-500.0,0.00021917,2]
[341996888,1731352246931,-500.0,0.00021917,2]
[341996889,1731352246943,-500.0,0.00021917,2]
[341996890,1731352246954,-569.31408041,0.00021917,2]
[341996891,1731352246966,-151.0,0.00021917,2]
[341996892,1731352246978,-1084.55,0.00021917,2]
[341996893,1731352246989,-500.0,0.00021917,2]
[341996894,1731352247001,-500.0,0.00021917,2]
[341996895,1731352247012,-580.33,0.00021917,2]
[341996896,1731352247024,-500.0,0.00021917,2]
[341996897,1731352247035,-500.0,0.00021917,2]
[341996898,1731352247046,-5515.23,0.00021917,2]
[341996899,1731352247056,-5515.23,0.00021917,2]
[341996900,1731352247067,-5515.23,0.00021917,2]
[341996901,1731352247080,-5515.23,0.00021917,2]
[341996902,1731352247091,-5515.23,0.00021917,2]
[341996903,1731352247101,-5515.23,0.00021917,2]
[341996904,1731352247112,-5515.23,0.00021917,2]
[341996905,1731352247123,-5515.23,0.00021917,2]
[341996906,1731352247134,-5515.23,0.00021917,2]
[341996907,1731352247144,-5515.23,0.00021917,2]
[341996908,1731352247155,-5515.23,0.00021917,2]
[341996909,1731352247165,-5515.23,0.00021917,2]
[341996910,1731352247176,-5515.23,0.00021917,2]
[341996911,1731352247186,-500.0,0.00021917,2]
[341996912,1731352247196,-5515.23,0.00021917,2]
[341996913,1731352247207,-5515.23,0.00021917,2]
[341996914,1731352247217,-5515.23,0.00021917,2]
[341996915,1731352247226,-5515.23,0.00021917,2]
[341996916,1731352247235,-500.0,0.00021917,2]
[341996917,1731352247245,-5515.23,0.00021917,2]
[341996918,1731352247254,-5515.23,0.00021917,2]
[341996919,1731352247264,-500.0,0.00021917,2]
[341996920,1731352247273,-14779.69,0.00021917,2]
[341996921,1731352247282,-5515.23,0.00021917,2]
[341996922,1731352247291,-5515.23,0.00021917,2]
[341996923,1731352247301,-5515.23,0.00021917,2]
[341996924,1731352247310,-5515.23,0.00021917,2]
[341996925,1731352247319,-5515.28196499,0.00021917,2]
[341996926,1731352247330,-500.0,0.00021917,2]
[341996927,1731352247339,-598.77983415,0.00021917,2]
[341996928,1731352247530,-685.03,0.00021917,2]
[341996929,1731352247542,-151.0,0.00021917,2]
[341996930,1731352247552,-500.0,0.00021917,2]
[341996931,1731352247561,-500.0,0.00021917,2]
[341996932,1731352247570,-500.0,0.00021917,2]
[341996933,1731352247581,-510.80193615,0.00021917,2]
[341996934,1731352247591,-500.0,0.00021917,2]
[341996935,1731352247600,-500.0,0.00021917,2]
[341996936,1731352247609,-500.0,0.00021917,2]
[341996937,1731352247618,-500.13863853,0.00021917,2]
[341996938,1731352247628,-500.0,0.00021917,2]
[341996939,1731352247638,-3095.79,0.00021917,2]
[341996940,1731352247647,-623.8,0.00021917,2]
[341996941,1731352247657,-242.32511056,0.00021917,2]
[341996942,1731352247667,-1421.54,0.00021917,2]
[341996943,1731352247677,-500.0,0.00021917,2]
[341996944,1731352247686,-500.0,0.00021917,2]
[341996945,1731352247696,-528.66,0.00021917,2]
[341996946,1731352247706,-500.0,0.00021917,2]
[341996947,1731352247715,-500.0,0.00021917,2]
[341996948,1731352247725,-719.33,0.00021917,2]
[341996949,1731352247735,-500.0,0.00021917,2]
[341996950,1731352247744,-500.0,0.00021917,2]
[341996951,1731352247753,-1053.49,0.00021917,2]
[341996952,1731352247763,-151.0,0.00021917,2]
[341996953,1731352247772,-166.666666,0.00021918,2]
[341996954,1731352247782,-500.0,0.00021973,2]
[341996955,1731352247792,-500.0,0.00021973,2]
[341996956,1731352247802,-500.0,0.00021973,2]
[341996957,1731352247812,-500.0,0.00021973,2]
[341996958,1731352247821,-500.0,0.00021973,2]
[341996959,1731352247833,-500.0,0.00021973,2]
[341996960,1731352247842,-500.0,0.00021973,2]
[341996961,1731352247852,-500.0,0.00021973,2]
[341996962,1731352247861,-500.0,0.00021973,2]
[341996963,1731352247872,-500.0,0.00021973,2]
[341996964,1731352247882,-544.60063434,0.00021973,2]
[341996965,1731352247891,-319.65885034,0.00021973,2]
[341996966,1731352247901,-504.75015119,0.00021973,2]
[341996967,1731352247910,-500.0,0.00021973,2]
[341996968,1731352247920,-500.0,0.00021973,2]
[341996969,1731352247930,-501.18375229,0.00021973,2]
[341996970,1731352247940,-500.0,0.00021973,2]
[341996971,1731352247949,-500.0,0.00021973,2]
[341996972,1731352247960,-501.54641109,0.00021973,2]
[341996973,1731352247969,-506.40954496,0.00021973,2]
[341996974,1731352247978,-160.84581062,0.00021973,2]
[341996975,1731352247987,-500.0,0.00021973,2]
[341996976,1731352247997,-500.0,0.00021973,2]
[341996977,1731352248006,-500.0,0.00021973,2]
[341996978,1731352248015,-507.59122062,0.00021973,2]
[341996979,1731352248025,-258.44201475,0.00021973,2]
[341996980,1731352248034,-452095.81968978,0.00022,2]
[341996983,1731352308902,342.50065,0.0002068,2]
[341996986,1731352383040,6000.0,0.0002,2]
[341996987,1731352393929,169.579516,0.00020242,2]
[341996988,1731352455085,2091.2774852,0.00020516,2]
[341996990,1731352565849,3792.56,0.0002,2]
[341996992,1731352606430,540.7221123,0.00020516,2]
[341996993,1731352739890,167.662955,0.00013973,2]
[341996994,1731352757586,213.569918,0.00020499,2]
[341996996,1731352901933,24900.0,0.00020462,2]
[341996997,1731352906143,8483.2212931,0.00020642,2]
[341996999,1731353053173,1169.27083333,0.00020845,2]
[341997001,1731353157746,174.1833,0.00020129,2]
[341997016,1731353365284,1169.27083333,0.00020845,2]
[341997022,1731353430106,226.775194,0.00020348,2]
[341997072,1731353432195,1248.9543252,0.00020499,2]
[341997076,1731353432225,-1169.27083333,0.00020845,2]
[341997078,1731353432235,-2040.34272741,0.00020856,2]
[341997080,1731353432246,-575.24139619,0.00020856,2]
[341997083,1731353432258,-5867.63716951,0.00020856,2]
[341997085,1731353432268,-180.0945,0.00020866,2]
[341997086,1731353432278,-8483.22129311,0.00021173,2]
[341997088,1731353432288,-210.77330146,0.00021317,4]
[341997090,1731353432297,-300.0,0.00021416,2]
[341997091,1731353432307,-300.0,0.00021416,2]
[341997092,1731353432316,-195.99340166,0.00021417,2]
[341997093,1731353432325,-34693.95858851,0.00021417,2]
[341997120,1731353438367,-2391.90106854,0.00021317,2]
[341997121,1731353438377,-841.47170601,0.00021417,2]
[341997122,1731353438386,-497.58862528,0.00021417,2]
[341997124,1731353438397,-16144.87565948,0.00021417,2]
[341997126,1731353438406,-170.256,0.00021417,2]
[341997127,1731353438414,-8483.22129311,0.00021497,2]
[341997129,1731353438423,-1000.0,0.0002158,2]
[341997131,1731353438432,-500.0,0.00021673,2]
[341997133,1731353438441,-500.0,0.00021673,2]
[341997135,1731353438450,-500.0,0.00021673,2]
[341997136,1731353438459,-93.92050226,0.00021673,2]
[341997171,1731353443240,-1227.88,0.0002167,3]
[341997172,1731353443250,-407.09976648,0.00021673,2]
[341997173,1731353443260,-500.0,0.00021673,2]
[341997174,1731353443270,-500.0,0.00021673,2]
[341997175,1731353443280,-201.74591296,0.00021673,2]
[341997176,1731353443289,-502.84652768,0.00021673,2]
[341997177,1731353443298,-500.0,0.00021673,2]
[341997178,1731353443308,-500.0,0.00021673,2]
[341997179,1731353443318,-500.0,0.00021673,2]
[341997180,1731353443327,-326.37943885,0.00021673,2]
[341997181,1731353443336,-500.0,0.00021673,2]
[341997182,1731353443346,-500.0,0.00021673,2]
[341997183,1731353443355,-500.0,0.00021673,2]
[341997184,1731353443367,-500.0,0.00021673,2]
[341997185,1731353443377,-150.77337661,0.00021673,2]
[341997186,1731353443385,-363.63856668,0.00021673,2]
[341997187,1731353443395,-502.58953552,0.00021673,2]
[341997188,1731353443404,-500.0,0.00021673,2]
[341997189,1731353443414,-500.0,0.00021673,2]
[341997190,1731353443423,-500.0,0.00021679,2]
[341997191,1731353443432,-501.46411506,0.00021679,2]
[341997192,1731353443442,-500.0,0.00021679,2]
[341997193,1731353443451,-500.0,0.00021679,2]
[341997194,1731353443461,-439.10438047,0.00021679,2]
[341997195,1731353443471,-500.0,0.00021679,2]
[341997196,1731353443480,-500.0,0.00021679,2]
[341997197,1731353443490,-500.0,0.00021679,2]
[341997198,1731353443499,-500.0,0.00021679,2]
[341997199,1731353443508,-500.0,0.00021679,2]
[341997200,1731353443518,-500.0,0.00021679,2]
[341997201,1731353443527,-500.0,0.00021679,2]
[341997202,1731353443536,-500.0,0.00021679,2]
[341997203,1731353443546,-500.0,0.00021679,2]
[341997204,1731353443555,-175.51064537,0.00021679,2]
[341997205,1731353443564,-500.0,0.00021679,2]
[341997206,1731353443573,-500.0,0.00021679,2]
[341997207,1731353443583,-500.0,0.00021679,2]
[341997208,1731353443593,-240.34606506,0.00021679,2]
[341997209,1731353443602,-4371.37166926,0.0002168,2]
[341997218,1731353446980,-665.72,0.000216,2]
[341997219,1731353446992,-284.62830351,0.000216,2]
[341997220,1731353447002,-32.61169649,0.00021675,2]
[341997222,1731353483720,285.289966,0.00020499,2]
[341997223,1731353592175,24900.0,0.00020499,2]
[341997224,1731353601049,4069.9126307,0.0001,2]
[341997227,1731353936544,3000.0,0.0002059,2]
[341997228,1731353990038,1169.27083333,0.00020845,2]
[341997229,1731353991699,158.017,0.00020633,2]
[341997230,1731354116468,848.693549,0.00020593,2]
[341997231,1731354265381,150.827,0.0002562,60]
[341997232,1731354299508,24900.0,0.00020499,2]
[341997233,1731354301642,1169.27083333,0.00020845,2]
[341997248,1731354613074,1169.27083333,0.00020845,2]
[341997282,1731354632482,-1169.27083333,0.00020845,2]
[341997284,1731354632491,-848.693549,0.00021278,2]
[341997286,1731354632500,-1000.0,0.0002148,2]
[341997288,1731354632509,-2092.91343499,0.0002148,2]
[341997290,1731354632518,-300.0,0.00021551,2]
[341997292,1731354632527,-300.0,0.00021551,2]
[341997294,1731354632536,-939.72218272,0.00021552,2]
[341997296,1731354632551,-7543.49911039,0.00021552,2]
[341997298,1731354632561,-1023.23,0.0002157,3]
[341997300,1731354632571,-511.61,0.0002157,3]
[341997302,1731354632579,-255.81,0.0002157,3]
[341997304,1731354632588,-767.45,0.0002157,3]
[341997307,1731354632598,-360.03845167,0.00021579,2]
[341997309,1731354632606,-560.98113734,0.0002158,2]
[341997311,1731354632616,-3652.3874908,0.0002158,2]
[341997484,1731354634274,1291.38007108,0.00020845,2]
[341997957,1731354638824,-24416.97425374,0.0002158,2]
[341997959,1731354638837,-14438.72146362,0.0002158,2]
[341997960,1731354638849,-51777.8,0.0002158,2]
[341998231,1731354644393,-135714.11679184,0.0002158,2]
[341998232,1731354644403,-753.75630351,0.000216,2]
[341998233,1731354644413,-753.7563035,0.00021654,2]
[341998234,1731354644422,-50365.9936547,0.0002168,3]
[341998235,1731354644432,-211.4359248,0.000217,2]
[341998236,1731354644442,-447.0942942,0.000217,2]
[341998237,1731354644451,-753.7563035,0.00021709,2]
[341998238,1731354644460,-196.4725,0.00021711,2]
[341998239,1731354644469,-192.09825,0.00021711,2]
[341998240,1731354644479,-753.7563035,0.00021763,2]
[341998241,1731354644488,-69423.69063276,0.0002178,2]
[341998242,1731354644498,-56079.7532365,0.0002178,2]
[341998243,1731354644507,-150.112233,0.000218,3]
[341998244,1731354644516,-150.112233,0.000218,3]
[341998245,1731354644526,-157.172666,0.000218,3]
[341998246,1731354644535,-3000.0,0.00021817,2]
[341998247,1731354644548,-1530.35803508,0.00021817,2]
[341998248,1731354644558,-753.7563035,0.00021817,2]
[341998249,1731354644567,-150.112233,0.000219,3]
[341998250,1731354644578,-150.112233,0.000219,4]
[341998251,1731354644590,-150.112233,0.000219,4]
[341998252,1731354644600,-150.112233,0.000219,3]
[341998253,1731354644610,-150.112236,0.000219,4]
[341998254,1731354644620,-150.112233,0.000219,3]
[341998255,1731354644631,-150.112233,0.000219,4]
[341998256,1731354644640,-500.0,0.00021916,2]
[341998257,1731354644650,-241.11776214,0.00021916,2]
[341998258,1731354644660,-271.14795854,0.00021916,2]
[341998259,1731354644670,-500.0,0.00021916,2]
[341998260,1731354644679,-266.29776451,0.00021916,2]
[341998261,1731354644689,-376.50577681,0.00021916,2]
[341998262,1731354644698,-480.77346069,0.00021916,2]
[341998263,1731354644708,-500.0,0.00021916,2]
[341998264,1731354644717,-206.7382851,0.00021916,2]
[341998265,1731354644726,-276.55294801,0.00021916,2]
[341998266,1731354644735,-208.72550112,0.00021916,2]
[341998267,1731354644745,-151.0,0.00021917,2]
[341998268,1731354644755,-156.427579,0.00021917,2]
[341998269,1731354644766,-151.0,0.00021917,2]
[341998270,1731354644776,-151.0,0.00021917,2]
[341998271,1731354644786,-151.0,0.00021917,2]
[341998272,1731354644795,-500.0,0.00021917,2]
[341998273,1731354644805,-500.0,0.00021917,2]
[341998274,1731354644815,-500.0,0.00021917,2]
[341998275,1731354644825,-511.68198346,0.00021917,2]
[341998276,1731354644838,-500.0,0.00021917,2]
[341998277,1731354644848,-304.76402893,0.00021917,2]
[341998278,1731354644859,-500.0,0.00021917,2]
[341998279,1731354644870,-151.0,0.00021917,2]
[341998280,1731354644881,-500.0,0.00021917,2]
[341998281,1731354644891,-500.0,0.00021917,2]
[341998282,1731354644901,-240.71195535,0.00021917,2]
[341998283,1731354644912,-500.0,0.00021917,2]
[341998284,1731354644921,-151.0,0.00021917,2]
[341998285,1731354644931,-500.0,0.00021917,2]
[341998286,1731354644941,-500.0,0.00021917,2]
[341998287,1731354644950,-500.0,0.00021917,2]
[341998288,1731354644959,-502.48861596,0.00021917,2]
[341998289,1731354644969,-500.0,0.00021917,2]
[341998290,1731354644978,-500.0,0.00021917,2]
[341998291,1731354644987,-500.0,0.00021917,2]
[341998292,1731354644996,-500.0,0.00021917,2]
[341998293,1731354645005,-500.31629543,0.00021917,2]
[341998294,1731354645015,-507.33917494,0.00021917,2]
[341998295,1731354645024,-500.0,0.00021917,2]
[341998296,1731354645033,-500.0,0.00021917,2]
[341998297,1731354645042,-500.0,0.00021917,2]
[341998298,1731354645051,-502.44431305,0.00021917,2]
[341998299,1731354645060,-500.0,0.00021917,2]
[341998300,1731354645069,-500.0,0.00021917,2]
[341998301,1731354645079,-593.38147904,0.00021917,2]
[341998302,1731354645095,-153.446363,0.00021917,2]
[341998303,1731354645119,-500.817625,0.00021917,2]
[341998304,1731354645150,-500.0,0.00021917,2]
[341998305,1731354645181,-151.0,0.00021917,2]
[341998306,1731354645214,-500.0,0.00021917,2]
[341998307,1731354645262,-500.0,0.00021917,2]
[341998308,1731354645279,-500.0,0.00021917,2]
[341998309,1731354645288,-500.0,0.00021917,2]
[341998310,1731354645297,-500.0,0.00021917,2]
[341998311,1731354645307,-529.94628143,0.00021917,2]
[341998312,1731354645316,-500.0,0.00021917,2]
[341998313,1731354645325,-500.0,0.00021917,2]
[341998314,1731354645336,-500.0,0.00021917,2]
[341998315,1731354645345,-500.0,0.00021917,2]
[341998316,1731354645354,-500.0,0.00021917,2]
[341998317,1731354645363,-620.51392782,0.00021917,2]
[341998318,1731354645373,-503.67411777,0.00021917,2]
[341998319,1731354645383,-500.0,0.00021917,2]
[341998320,1731354645392,-500.0,0.00021917,2]
[341998321,1731354645401,-500.0,0.00021917,2]
[341998322,1731354645411,-501.67488762,0.00021917,2]
[341998323,1731354645420,-500.0,0.00021917,2]
[341998324,1731354645429,-500.0,0.00021917,2]
[341998325,1731354645438,-500.61782416,0.00021917,2]
[341998326,1731354645448,-500.0,0.00021917,2]
[341998327,1731354645457,-500.0,0.00021917,2]
[341998328,1731354645467,-500.0,0.00021917,2]
[341998329,1731354645476,-507.74031188,0.00021917,2]
[341998330,1731354645485,-500.0,0.00021917,2]
[341998331,1731354645495,-500.0,0.00021917,2]
[341998332,1731354645504,-500.0,0.00021917,2]
[341998333,1731354645513,-500.0,0.00021917,2]
[341998334,1731354645523,-500.0,0.00021917,2]
[341998335,1731354645534,-500.0,0.00021917,2]
[341998336,1731354645547,-500.0,0.00021917,2]
[341998337,1731354645557,-500.0,0.00021917,2]
[341998338,1731354645567,-500.0,0.00021917,2]
[341998339,1731354645576,-500.0,0.00021917,2]
[341998340,1731354645586,-500.0,0.00021917,2]
[341998341,1731354645596,-523.09475963,0.00021917,2]
[341998342,1731354645606,-500.0,0.00021917,2]
[341998343,1731354645615,-243.66179463,0.00021917,2]
[341998344,1731354645625,-486.25353279,0.00021917,2]
[341998345,1731354645634,-500.0,0.00021917,2]
[341998346,1731354645643,-500.0,0.00021917,2]
[341998347,1731354645652,-290.88400745,0.00021917,2]